{"text_format":"1","workbook":"xlsx","n_sheets":4,"sheets":["Bilgiler","İzlenebilirlik","Rapor","PERFORMANS Testi"],"not_rendered":{"charts":0,"images":4,"macros":1,"external_links":0,"defined_names":1,"comments":0,"pivot_tables":0},"unopened":[],"bounds":{"document_bytes":16777216,"sheet_cells":100000,"rows_first":2000,"rows_last":500,"rows_between":2000,"halvings":0,"cell_chars":16384,"cell_head_chars":4096},"cells_cut":0,"cells_raw":0,"read":"whole","date_system":"1900"}

{"sheet":"Bilgiler","index":0,"n_rows":28,"n_cols":25,"rows_kept":28,"cut":false,"hidden":false,"merged":[]}
["Id","Birlik","SağlıkTesisi","Künye","RaporNo","Tür","Cihaz","Üretici","Model","Seri","Lokasyon","KalTarihi","GeçTarihi","RaporTarihi","KalibrasyonYapan","Ünvanı","ZimmetSahibi","NezaretEden","FizikselKontrol","Uygun","Uygunsuz","Sınırlı","UzmanGörüşü","Yorum","Not"]
[1]
[]
[null,"GENEL RAPOR BİLGİLERİ"]
[null,"Sayfa Sayısı",3]
[null,"Test Sayısı",2]
[null,"Biyomedikal Tür","PULSE OKSİMETRE"]
[null,"Lab. Sorumlusu","NAZİF İLKER SEZDİ"]
[null,"Ünvanı","Biyomedikal Yük. Müh. - BScEE - MBA"]
[]
[null,"STANDART BİLGİLERİ"]
[null,"1. Standart","TS EN 60601-3-1"]
[null,"1. Standart Başlığı","Deriden Geçen OksijenVe Karbondioksit Kısmi Basınç İzleme Donanımı İçin\nTemel Performans Kuralı"]
[null,"1. Test Madde No","3.4"]
[null,"1. Test Başlığı","Açıklamalar ve Test Şartları"]
[null,"1. Revizyon Tarihi","Kas.1997"]
[null,null,"  "]
[null,"2. Standart","  "]
[null,"2. Standart Başlığı","  "]
[null,"2. Test Madde No","  "]
[null,"2. Test Başlığı","  "]
[null,"2. Revizyon Tarihi","  "]
[null,null,"  "]
[null,"3. Standart","  "]
[null,"3. Standart Başlığı","  "]
[null,"3. Test Madde No","  "]
[null,"3. Test Başlığı","  "]
[null,"3. Revizyon Tarihi","  "]

{"sheet":"İzlenebilirlik","index":1,"n_rows":4,"n_cols":10,"rows_kept":4,"cut":false,"hidden":false,"merged":[]}
["Id","Kodu","Cihaz","Üretici","Model","Seri","İzlenebilirlik","SertifikaNo","KalTarihi","GecTarihi"]
[1,"K170","HASTA SİMÜLATÖRÜ","DATREND","VPAD-A1","VBU17050101","MEDİBİM","LAB-0623-003","2023-06-19","2024-06-19"]
[2,"-","-","-","-","-","-","-","1991-09-20","1991-09-20"]
[3,"-","-","-","-","-","-","-","1991-09-20","1991-09-20"]

{"sheet":"Rapor","index":2,"n_rows":194,"n_cols":37,"rows_kept":194,"cut":false,"hidden":false,"merged":[[158,6,158,28],[158,29,158,31],[152,11,152,15],[152,16,152,20],[152,21,152,24],[152,25,152,28],[152,29,152,31],[154,6,154,31],[149,6,152,10],[156,6,156,28],[150,29,150,31],[151,11,151,15],[151,16,151,20],[151,21,151,24],[151,25,151,28],[151,29,151,31],[149,11,149,15],[149,16,149,20],[149,21,149,24],[149,25,149,28],[149,29,149,31],[150,11,150,15],[156,29,156,31],[157,6,157,28],[157,29,157,31],[143,29,143,31],[144,11,144,15],[144,16,144,20],[144,21,144,24],[144,25,144,28],[144,29,144,31],[148,21,148,24],[148,25,148,28],[148,29,148,31],[143,6,146,10],[155,6,155,28],[155,29,155,31],[150,16,150,20],[150,21,150,24],[150,25,150,28],[147,6,147,31],[148,6,148,10],[148,11,148,15],[148,16,148,20],[145,11,145,15],[145,16,145,20],[145,21,145,24],[145,25,145,28],[145,29,145,31],[146,11,146,15],[146,16,146,20],[146,21,146,24],[146,25,146,28],[146,29,146,31],[143,11,143,15],[143,16,143,20],[143,21,143,24],[143,25,143,28],[122,35,122,38],[123,2,123,10],[123,11,123,15],[123,16,123,20],[123,21,123,25],[123,26,123,30],[183,2,187,5],[183,6,187,36],[193,24,193,33],[159,6,159,28],[159,29,159,31],[160,6,160,28],[160,29,160,31],[127,24,127,33],[130,32,131,36],[132,32,133,36],[134,32,135,36],[141,6,141,31],[142,6,142,10],[142,11,142,15],[142,16,142,20],[142,21,142,24],[142,25,142,28],[142,29,142,31],[118,2,118,10],[118,11,118,15],[118,16,118,20],[118,21,118,25],[118,26,118,30],[118,31,118,34],[118,35,118,38],[119,2,119,10],[119,11,119,15],[119,16,119,20],[119,21,119,25],[119,26,119,30],[61,24,61,33],[64,32,65,36],[66,32,67,36],[68,32,69,36],[75,2,75,9],[75,10,75,12],[117,2,117,10],[117,11,117,15],[117,16,117,20],[117,21,117,25],[117,26,117,30],[117,31,117,34],[117,35,117,38],[50,2,50,4],[50,8,50,11],[50,15,50,22],[50,26,50,35],[51,8,51,11],[51,15,51,22],[51,26,51,35],[34,2,34,8],[34,10,34,17],[34,25,34,34],[35,2,35,8],[49,2,49,4],[49,8,49,11],[49,15,49,22],[49,26,49,35],[29,2,29,8],[31,2,31,8],[31,10,31,17],[31,19,31,24],[31,25,31,34],[32,2,32,8],[32,19,32,23],[23,2,23,8],[25,2,25,8],[25,10,25,38],[26,2,26,8],[28,2,28,8],[28,10,28,36],[17,10,18,37],[19,2,19,8],[19,10,19,37],[20,2,20,8],[22,2,22,8],[22,10,22,37],[7,32,8,36],[9,32,10,36],[11,32,12,36],[15,2,15,8],[15,10,16,36],[16,2,16,8],[123,31,123,34],[123,35,123,38],[119,31,119,34],[119,35,119,38],[120,2,120,10],[120,11,120,15],[120,16,120,20],[120,21,120,25],[120,26,120,30],[120,31,120,34],[120,35,120,38],[121,2,121,10],[121,11,121,15],[121,16,121,20],[121,21,121,25],[121,26,121,30],[121,31,121,34],[121,35,121,38],[122,2,122,10],[122,11,122,15],[122,16,122,20],[122,21,122,25],[122,26,122,30],[122,31,122,34]]}
[]
[]
[]
[]
[]
[]
[]
[null,null,null,null,null,null,null,null,null,null,null,null,null,null,null,null,null,null,null,null,null,null,null,null,null,null,null,null,null,null,null,null,"AB-1251-T"]
[]
[null,null,null,null,null,null,null,null,null,null,null,null,null,null,null,null,null,null,null,null,null,null,null,null,null,null,null,null,null,null,null,null,{"$f":"Bilgiler!E2","v":0}]
[]
[null,null,null,null,null,null,null,null,null,null,null,null,null,null,null,null,null,null,null,null,null,null,null,null,null,null,null,null,null,null,null,null,{"$f":"Bilgiler!L2","v":"00:00:00"}]
[]
[]
[]
[null,null,"Cihazın Sahibi / Adresi",null,null,null,null,null,null,":",{"$f":"Bilgiler!C2","v":0}]
[null,null,"Customer"]
[null,null,null,null,null,null,null,null,null,null,{"$f":"CONCATENATE(\"Lokasyon: \",Bilgiler!K2,\" - \", \"Adres: \",Bilgiler!F2)","v":"Lokasyon:  - Adres: "}]
[]
[null,null,"Proje/Teklif Numarası",null,null,null,null,null,null,":",{"$f":"Bilgiler!B2","v":0}]
[null,null,"Order Number",null,null,null,null,null,null,null,null,null,null,null,null,null,null,null,null,null,null,null,null," "]
[]
[null,null,"Makine / Cihaz",null,null,null,null,null,null,":",{"$f":"Bilgiler!G2","v":0}]
[null,null,"Instrument / Device"]
[]
[null,null,"İmalatçı",null,null,null,null,null,null,":",{"$f":"Bilgiler!H2","v":0}]
[null,null,"Manufacturer"]
[]
[null,null,"Tip",null,null,null,null,null,null,":",{"$f":"Bilgiler!I2","v":0}]
[null,null,"Type"]
[]
[null,null,"Kalibrasyon Tarihi",null,null,null,null,null,null,":",{"$f":"Bilgiler!L2","v":"00:00:00"},null,null,null,null,null,null,null,null,"Seri Numarası        :",null,null,null,null,null,{"$f":"Bilgiler!J2","v":0}]
[null,null,"Date of Calibration",null,null,null,null,null,null,null,null,null,null,null,null,null,null,null,null,"Serial Number"]
[]
[null,null,"Rapor Sayfa Sayısı",null,null,null,null,null,null,":",3,null,null,null,null,null,null,null,null,"Künye Numarası    :",null,null,null,null,null,{"$f":"Bilgiler!D2","v":0}]
[null,null,"Total Number of Certificate",null,null,null,null,null,null,null,null,null,null,null,null,null,null,null,null,"Identity Number"]
[]
[]
[]
[]
[]
[]
[]
[]
[]
[]
[]
[]
[]
[null,null,"Mühür",null,null,null,null,null,"Tarih",null,null,null,null,null,null,"Deneyi Yapan",null,null,null,null,null,null,null,null,null,null,"Sorumlu Müdür"]
[null,null,"Seal",null,null,null,null,null,"Date",null,null,null,null,null,null,"Experimenter",null,null,null,null,null,null,null,null,null,null,"Responsible Manager"]
[null,null,null,null,null,null,null,null,{"$f":"Bilgiler!N2","v":"00:00:00"},null,null,null,null,null,null,{"$f":"Bilgiler!O2","v":"00:00:00"},null,null,null,null,null,null,null,null,null,null,{"$f":"Bilgiler!C8","v":"NAZİF İLKER SEZDİ"}]
[]
[]
[]
[]
[]
[]
[]
[null,"Bu sertifika, laboratuvarın yazılı izni olmadan kısmen veya tamamen kopyalanıp çoğaltılamaz. İmzasız sertifikalar geçersizdir."]
[null,"This certificate can not be fully or partly reproduced without the permission of the laboratory. Calibration certificates without signature are not valid."]
[null,"MB4001/ Yay.tar: 04.12.2008 /Rev.tar: 23.01.2024/Rev.no: 7",null,null,null,null,null,null,null,null,null,null,null,null,null,null,null,null,null,null,null,null,null,null,"Sayfa No / Number of Pages:",null,null,null,null,null,null,null,null,null,1,"/",3]
[]
[]
[null,null,null,null,null,null,null,null,null,null,null,null,null,null,null,null,null,null,null,null,null,null,null,null,null,null,null,null,null,null,null,null,{"$f":"AG8","v":"AB-1251-T"}]
[]
[null,null,null,null,null,null,null,null,null,null,null,null,null,null,null,null,null,null,null,null,null,null,null,null,null,null,null,null,null,null,null,null,{"$f":"AG10","v":0}]
[]
[null,null,null,null,null,null,null,null,null,null,null,null,null,null,null,null,null,null,null,null,null,null,null,null,null,null,null,null,null,null,null,null,{"$f":"AG12","v":"00:00:00"}]
[]
[]
[]
[]
[]
[null,null,"Test ve Deneyi Yapılan Cihaz Bilgileri :"]
[null,null,"Instrument Details"]
[null,null,"Künye No",null,null,null,null,":",{"$f":"Bilgiler!D2","v":0}]
[null,null,"Imprint No"]
[null,null,"Makine Cihaz",null,null,null,null,":",{"$f":"Bilgiler!G2","v":0}]
[null,null,"Instrument/Device"]
[null,null,"Üretici",null,null,null,null,":",{"$f":"Bilgiler!H2","v":0}]
[null,null,"Manufacturer"]
[null,null,"Tip",null,null,null,null,":",{"$f":"Bilgiler!I2","v":0}]
[null,null,"Type"]
[null,null,"Seri Numarası",null,null,null,null,":",{"$f":"Bilgiler!J2","v":0}]
[null,null,"Serial Number"]
[]
[]
[]
[]
[]
[]
[]
[]
[]
[]
[]
[]
[]
[]
[]
[]
[]
[]
[]
[]
[]
[]
[]
[]
[]
[]
[]
[]
[]
[null,null,"Kalibrasyon sırasında kullanılan referanslar ve cihazlar:"]
[null,null,"References and devices used during calibration:"]
[null,null,"Cihaz",null,null,null,null,null,null,null,null,"Marka",null,null,null,null,"Model",null,null,null,null,"Seri Numarası",null,null,null,null,"Sertifika No",null,null,null,null,"İzlenebilirlik",null,null,null,"Kalib.Tarihi"]
[null,null,"Device",null,null,null,null,null,null,null,null,"Marka",null,null,null,null,"Model",null,null,null,null,"Serial Num.",null,null,null,null,"Certificate Number",null,null,null,null,"Traceability",null,null,null,"Cal.Date"]
[null,null,{"$f":"İzlenebilirlik!C2","v":"HASTA SİMÜLATÖRÜ"},null,null,null,null,null,null,null,null,{"$f":"İzlenebilirlik!D2","v":"DATREND"},null,null,null,null,{"$f":"İzlenebilirlik!E2","v":"VPAD-A1"},null,null,null,null,{"$f":"İzlenebilirlik!F2","v":"VBU17050101"},null,null,null,null,{"$f":"İzlenebilirlik!H2","v":"LAB-0623-003"},null,null,null,null,{"$f":"İzlenebilirlik!G2","v":"MEDİBİM"},null,null,null,{"$f":"IF(İzlenebilirlik!C2=\"-\",\"-\",İzlenebilirlik!I2)","v":"2023-06-19"}]
[null,null,{"$f":"İzlenebilirlik!C3","v":"-"},null,null,null,null,null,null,null,null,{"$f":"İzlenebilirlik!D3","v":"-"},null,null,null,null,{"$f":"İzlenebilirlik!E3","v":"-"},null,null,null,null,{"$f":"İzlenebilirlik!F3","v":"-"},null,null,null,null,{"$f":"İzlenebilirlik!H3","v":"-"},null,null,null,null,{"$f":"İzlenebilirlik!G3","v":"-"},null,null,null,{"$f":"IF(İzlenebilirlik!C3=\"-\",\"-\",İzlenebilirlik!I3)","v":"-"}]
[null,null,{"$f":"İzlenebilirlik!C4","v":"-"},null,null,null,null,null,null,null,null,{"$f":"İzlenebilirlik!D4","v":"-"},null,null,null,null,{"$f":"İzlenebilirlik!E4","v":"-"},null,null,null,null,{"$f":"İzlenebilirlik!F4","v":"-"},null,null,null,null,{"$f":"İzlenebilirlik!H4","v":"-"},null,null,null,null,{"$f":"İzlenebilirlik!G4","v":"-"},null,null,null,{"$f":"IF(İzlenebilirlik!C4=\"-\",\"-\",İzlenebilirlik!I4)","v":"-"}]
[]
[]
[]
[null,"Bu sertifika, laboratuvarın yazılı izni olmadan kısmen veya tamamen kopyalanıp çoğaltılamaz. İmzasız sertifikalar geçersizdir."]
[null,"This certificate can not be fully or partly reproduced without the permission of the laboratory. Calibration certificates without signature are not valid."]
[null,"MB4001/ Yay.tar: 04.12.2008 /Rev.tar: 23.01.2024/Rev.no: 7",null,null,null,null,null,null,null,null,null,null,null,null,null,null,null,null,null,null,null,null,null,null,"Sayfa No / Number of Pages:",null,null,null,null,null,null,null,null,null,2,"/",3]
[]
[]
[null,null,null,null,null,null,null,null,null,null,null,null,null,null,null,null,null,null,null,null,null,null,null,null,null,null,null,null,null,null,null,null,{"$f":"AG8","v":"AB-1251-T"}]
[]
[null,null,null,null,null,null,null,null,null,null,null,null,null,null,null,null,null,null,null,null,null,null,null,null,null,null,null,null,null,null,null,null,{"$f":"AG10","v":0}]
[]
[null,null,null,null,null,null,null,null,null,null,null,null,null,null,null,null,null,null,null,null,null,null,null,null,null,null,null,null,null,null,null,null,{"$f":"AG12","v":"00:00:00"}]
[]
[]
[]
[]
[]
[]
[null,null,null,null,null,null,"PULSE OKSİMETRE - OKSİJEN SATURASYON TESTİ"]
[null,null,null,null,null,null,"Kriter",null,null,null,null,"Ayarlanan (%)",null,null,null,null,"Ölçülen (%)",null,null,null,null,"Sapma (%)",null,null,null,"Belirsizlik (%)",null,null,null,"Sonuç"]
[null,null,null,null,null,null,"± %2",null,null,null,null,80,null,null,null,null,{"$f":"RANDBETWEEN(L144*99,L144*101)/100","v":79.95},null,null,null,null,{"$f":"Q144-L144","v":-4.9999999999997158E-2},null,null,null,{"$f":"(SQRT(0.005*Q144)^2+(0.05/SQRT(3))^2)/10","v":4.0058333333333349E-2},null,null,null,"√"]
[null,null,null,null,null,null,null,null,null,null,null,85,null,null,null,null,{"$f":"RANDBETWEEN(L145*99,L145*101)/100","v":85.78},null,null,null,null,{"$f":"Q145-L145","v":0.78000000000000114},null,null,null,{"$f":"(SQRT(0.005*Q145)^2+(0.05/SQRT(3))^2)/10","v":4.2973333333333343E-2},null,null,null,"√"]
[null,null,null,null,null,null,null,null,null,null,null,90,null,null,null,null,89.55,null,null,null,null,-0.45000000000000284,null,null,null,4.4858333333333326E-2,null,null,null,"√"]
[null,null,null,null,null,null,null,null,null,null,null,98,null,null,null,null,97.4,null,null,null,null,-0.59999999999999432,null,null,null,4.8783333333333345E-2,null,null,null,"√"]
[null,null,null,null,null,null,"PULSE OKSİMETRE - NABIZ TESTİ"]
[null,null,null,null,null,null,"Kriter",null,null,null,null,"Ayarlanan (bpm)",null,null,null,null,"Ölçülen (bpm)",null,null,null,null,"Sapma (bpm)",null,null,null,"Belirsizlik",null,null,null,"Sonuç"]
[null,null,null,null,null,null,"± %1 veya ±2 vuru/dak.'dan hangisi büyükse",null,null,null,null,200,null,null,null,null,{"$f":"RANDBETWEEN(L150*99,L150*101)/100","v":201.62},null,null,null,null,{"$f":"Q150-L150","v":1.6200000000000045},null,null,null,{"$f":"(SQRT(0.005*Q150)^2+(0.05/SQRT(3))^2)/10","v":0.10089333333333335},null,null,null,"√"]
[null,null,null,null,null,null,null,null,null,null,null,140,null,null,null,null,{"$f":"RANDBETWEEN(L151*99,L151*101)/100","v":140.16},null,null,null,null,{"$f":"Q151-L151","v":0.15999999999999659},null,null,null,{"$f":"(SQRT(0.005*Q151)^2+(0.05/SQRT(3))^2)/10","v":7.0163333333333341E-2},null,null,null,"√"]
[null,null,null,null,null,null,null,null,null,null,null,100,null,null,null,null,99.81,null,null,null,null,-0.18999999999999773,null,null,null,4.9988333333333343E-2,null,null,null,"√"]
[null,null,null,null,null,null,null,null,null,null,null,60,null,null,null,null,59.97,null,null,null,null,-3.0000000000001137E-2,null,null,null,3.0068333333333329E-2,null,null,null,"√"]
[]
[null,null,null,null,null,null,"FİZİKSEL KONTROL"]
[null,null,null,null,null,null,"Kontrol Edilen Bölgeler",null,null,null,null,null,null,null,null,null,null,null,null,null,null,null,null,null,null,null,null,null,null,"Sonuç"]
[null,null,null,null,null,null,"Genel fiziksel kontrol",null,null,null,null,null,null,null,null,null,null,null,null,null,null,null,null,null,null,null,null,null,null,"√"]
[null,null,null,null,null,null,"Şase Dış Muhafaza",null,null,null,null,null,null,null,null,null,null,null,null,null,null,null,null,null,null,null,null,null,null,"√"]
[null,null,null,null,null,null,"Gösterge ve LCD ekran ve paneller",null,null,null,null,null,null,null,null,null,null,null,null,null,null,null,null,null,null,null,null,null,null,"√"]
[null,null,null,null,null,null,"Besleme, Elektrik kablo ve prizleri",null,null,null,null,null,null,null,null,null,null,null,null,null,null,null,null,null,null,null,null,null,null,"√"]
[null,null,null,null,null,null,"Butonlar, düğmeler",null,null,null,null,null,null,null,null,null,null,null,null,null,null,null,null,null,null,null,null,null,null,"√"]
[]
[]
[]
[]
[]
[]
[]
[]
[]
[]
[]
[]
[]
[]
[]
[]
[]
[]
[]
[]
[]
[]
[null,null,"UZMAN GÖRÜŞÜ",null,null,null,{"$f":"Bilgiler!W2","v":0}]
[]
[]
[]
[]
[]
[]
[]
[null,"Bu sertifika, laboratuarın yazılı izni olmadan kısmen kopyalanıp çoğaltılamaz. İmzasız sertifikalar geçersizdir."]
[null,"The certificate can not be fully or partly reproduced without the permission of the laboratory.Calibration certificates without signature are not valid."]
[null,"MB4001/ Yay.tar: 04.12.2008 /Rev.tar: 23.01.2024/Rev.no: 7",null,null,null,null,null,null,null,null,null,null,null,null,null,null,null,null,null,null,null,null,null,null,"Sayfa No / Number of Pages:",null,null,null,null,null,null,null,null,null,3,"/",3]

{"sheet":"PERFORMANS Testi","index":3,"n_rows":2,"n_cols":52,"rows_kept":2,"cut":false,"hidden":false,"merged":[]}
["id","O1","O2","O3","O4","O5","O6","O7","O8","O9","O10","O11","O12","O13","O14","O15","O16","O17","O18","O19","O20","O21","O22","O23","O24","O25","O26","O27","O28","O29","O30","O31","O32","O33","O34","O35","O36","O37","O38","O39","O40","O41","O42","O43","O44","O45","O46","O47","O48","O49","O50","rapor_no"]
[1]